bitfinex-derivatives/quotes_SOLF0:USTF0_20260102
["timestamp","ask_amount","ask_price","bid_price","bid_amount"]
[1767364610678,93.0,127.25,127.18,0.05256984]
[1767364611080,0.05593142,127.23,127.18,0.05256984]
[1767364611278,0.05593142,127.23,127.19,0.05160515]
[1767364611786,7.0793,127.26,127.19,7.44160994]
[1767364611991,92.96,127.29,127.19,0.30750479]
[1767364612488,92.96,127.29,127.21,0.30750479]
[1767364612675,110.0755,127.31,127.21,0.30750479]
[1767364612879,0.05376162,127.26,127.24,0.05978337]
[1767364613188,110.0679,127.32,127.24,0.05978337]
[1767364613480,110.0514,127.34,127.22,0.30750479]
[1767364613683,110.0637,127.32,127.23,0.30750479]
[1767364614183,110.0637,127.32,127.19,110.1731]
[1767364614184,7.078,127.28,127.2,0.30750479]
[1767364614583,131.62162184,127.37,127.23,0.30750479]
[1767364614779,131.62162184,127.37,127.24,93.24750479]
[1767364615082,7.0756,127.32,127.25,0.30750479]
[1767364615378,0.05173202,127.3,127.27,0.05517181]
[1767364616385,121.65006338,127.35,127.27,0.05517181]
[1767364616584,110.0478,127.34,127.25,0.30750479]
[1767364616782,7.0747,127.34,127.25,0.30750479]
[1767364617184,0.0563729,127.31,127.28,0.05008846]
[1767364617687,11.60926338,127.35,127.28,0.37421665]
[1767364618081,11.60926338,127.35,127.28,7.45181665]
[1767364618486,0.05059273,127.33,127.28,7.45181665]
[1767364618687,11.60926338,127.35,127.3,0.32412819]
[1767364618879,7.0725,127.38,127.3,0.32412819]
[1767364619390,109.9849,127.42,127.31,0.32412819]
[1767364619693,109.9863,127.41,127.31,0.32412819]
[1767364619992,0.05164545,127.37,127.35,0.05249757]
[1767364620183,0.05164545,127.37,127.31,7.39992819]
[1767364620689,92.92,127.43,127.33,0.32412819]
[1767364620893,109.979,127.42,127.33,0.32412819]
[1767364621388,92.92,127.43,127.33,0.32412819]
[1767364621586,109.9589,127.45,127.33,0.32412819]
[1767364621892,0.05834039,127.4,127.38,0.05290986]
[1767364622189,109.9476,127.46,127.38,0.05290986]
[1767364622380,109.9476,127.46,127.36,0.32412819]
[1767364622580,7.0689,127.44,127.36,0.32412819]
[1767364622883,202.8321,127.48,127.36,0.32412819]
[1767364623083,0.02907445,127.43,127.41,0.05056171]
[1767364623291,109.9521,127.45,127.36,0.32412819]
[1767364623475,109.9718,127.43,127.33,0.32412819]
[1767364623679,109.9718,127.43,127.33,93.20412819]
[1767364623882,109.9461,127.46,127.34,0.32412819]
[1767364624079,92.88,127.48,127.36,0.32412819]
[1767364624279,92.88,127.48,127.41,0.04965882]
[1767364624582,109.9231,127.49,127.41,0.04965882]
[1767364624786,7.0664,127.49,127.4,0.32412819]
[1767364625080,439.4839,127.55,127.41,0.32412819]
[1767364625081,109.8857,127.53,127.41,0.32412819]
[1767364625281,0.02554229,127.48,127.46,0.05608272]
[1767364625480,92.86,127.53,127.46,0.05608272]
[1767364625690,202.7448,127.53,127.46,0.05608272]
[1767364625890,7.0657,127.5,127.46,0.05608272]
[1767364626287,92.86,127.53,127.46,0.05608272]
[1767364626805,109.8465,127.58,127.46,0.38021091]
[1767364626987,202.7065,127.58,127.51,0.05608995]
[1767364627183,7.0622,127.56,127.51,0.05608995]
[1767364627388,109.8179,127.61,127.51,0.05608995]
[1767364627695,109.8227,127.6,127.55,0.05943694]
[1767364627895,92.84,127.61,127.55,0.05943694]
[1767364628081,109.8124,127.62,127.55,0.05943694]
[1767364628281,7.0602,127.6,127.55,0.05943694]
[1767364628494,109.8124,127.62,127.55,0.05943694]
[1767364628792,7.0591,127.62,127.55,0.05943694]
[1767364629692,109.7878,127.64,127.55,0.05943694]
[1767364629896,109.7878,127.64,127.58,0.05479966]
[1767364630198,7.0579,127.64,127.58,0.05479966]
[1767364630392,11.47749464,127.66,127.58,0.05479966]
[1767364630596,121.24849464,127.66,127.61,0.0498926]
[1767364630798,121.24849464,127.66,127.57,0.32412819]
[1767364630997,109.7897,127.64,127.57,0.32412819]
[1767364631294,109.7897,127.64,127.54,0.32412819]
[1767364631695,0.0498926,127.6,127.58,0.05897224]
[1767364632802,11.47749464,127.66,127.58,0.38310043]
[1767364633004,109.7893,127.64,127.55,0.32412819]
[1767364633498,109.8066,127.62,127.52,0.32412819]
[1767364633702,109.8136,127.61,127.56,0.05967467]
[1767364633889,7.059,127.62,127.56,0.05967467]
[1767364634090,109.7794,127.65,127.56,0.05967467]
[1767364634293,109.7794,127.65,127.59,0.05755139]
[1767364634502,7.058,127.64,127.59,0.05755139]
[1767364635012,7.0592,127.62,127.59,0.05755139]
[1767364635198,7.0592,127.62,127.5,117.35602184]
[1767364635199,109.8139,127.61,127.51,0.32412819]
[1767364635406,109.8237,127.6,127.51,93.06412819]
[1767364635601,7.0614,127.58,127.51,93.06412819]
[1767364635895,109.8415,127.58,127.48,0.32412819]
[1767364636096,0.05755139,127.54,127.52,0.053422]
[1767364636494,0.05755139,127.54,127.48,0.32412819]
[1767364637094,0.05755139,127.54,127.47,92.74]
[1767364637294,7.0642,127.53,127.47,92.74]
[1767364637598,7.0642,127.53,127.45,0.32412819]
[1767364637599,0.05148987,127.51,127.49,0.0512333]
[1767364637794,0.05148987,127.51,127.45,0.32412819]
[1767364638904,0.05148987,127.51,127.47,0.05490139]
[1767364639094,0.05718138,127.5,127.47,0.05490139]
[1767364640308,0.05718138,127.5,127.43,92.72]
[1767364640309,7.0663,127.49,127.43,92.72]
[1767364640607,7.0663,127.49,127.42,0.32412819]
[1767364640802,109.9128,127.5,127.42,0.32412819]
[1767364641003,202.6328,127.5,127.42,0.32412819]
[1767364641410,109.8748,127.54,127.45,0.05438172]
[1767364641710,202.5948,127.54,127.43,0.32412819]
[1767364642500,92.72,127.54,127.45,0.32412819]
[1767364642703,109.8469,127.58,127.47,0.38163622]
[1767364642903,92.72,127.59,127.47,0.32412819]
[1767364643101,202.5532,127.59,127.48,7.39042819]
[1767364643407,202.5532,127.59,127.49,0.32412819]
[1767364643610,0.05246618,127.55,127.53,0.05005007]
[1767364643813,0.05246618,127.55,127.49,0.32412819]
[1767364644814,0.05246618,127.55,127.51,0.05715626]
[1767364646214,7.11536618,127.55,127.51,0.05715626]
[1767364646515,0.05246618,127.55,127.46,93.06516812]
[1767364646818,7.064,127.53,127.43,0.34516812]
[1767364647107,7.064,127.53,127.44,0.34516812]
[1767364647316,7.0645,127.52,127.44,0.34516812]
[1767364647502,0.0582044,127.49,127.47,0.05015246]
[1767364648011,92.72,127.56,127.47,0.39532058]
[1767364648209,92.72,127.56,127.47,0.34516812]
[1767364648411,99.7823,127.56,127.47,7.41216812]
[1767364648607,7.45042184,127.58,127.47,0.34516812]
[1767364648910,100.17042184,127.58,127.47,0.34516812]
[1767364649108,0.04971059,127.54,127.51,0.05067567]
[1767364649516,202.5496,127.6,127.51,0.05067567]
[1767364649817,109.8483,127.57,127.47,92.72]
[1767364650007,109.8653,127.55,127.43,0.34516812]
[1767364650310,7.0645,127.52,127.44,0.34516812]
[1767364650716,0.0601862,127.49,127.47,0.05044811]
[1767364650914,0.05333524,127.49,127.47,0.05044811]
[1767364651113,0.05333524,127.49,127.44,0.34516812]
[1767364651822,7.0639,127.53,127.45,7.41306812]
[1767364652006,202.5823,127.56,127.45,0.34516812]
[1767364652212,202.5823,127.56,127.49,0.05507113]
[1767364652412,7.0631,127.55,127.49,0.05507113]
[1767364652917,202.5823,127.56,127.49,0.05507113]
[1767364653312,7.11793671,127.54,127.49,0.05507113]
[1767364653815,0.05453671,127.54,127.49,0.05507113]
[1767364655203,7.11793671,127.54,127.49,0.05507113]
[1767364655409,0.05453671,127.54,127.49,0.05507113]
[1767364656809,0.05453671,127.54,127.5,7.0654]
[1767364657010,0.05453671,127.54,127.49,0.05507113]
[1767364659815,0.05453671,127.54,127.49,0.40023925]
[1767364660010,7.061,127.59,127.49,0.40023925]
[1767364660209,7.061,127.59,127.49,0.34516812]
[1767364660415,109.8309,127.59,127.49,7.41076812]
[1767364660616,7.063,127.55,127.49,0.34516812]
[1767364661005,0.04692573,127.53,127.51,0.05736371]
[1767364664217,7.11092573,127.53,127.47,92.7]
[1767364664912,0.04692573,127.53,127.47,92.7]
[1767364665113,0.04692573,127.53,127.49,0.05638917]
[1767364665309,0.04692573,127.53,127.49,0.40155729]
[1767364665514,9.57977375,127.59,127.49,0.40155729]
[1767364665717,5.7745622,127.58,127.5,0.34516812]
[1767364665916,5.7745622,127.57,127.5,0.34516812]
[1767364666116,123.95305434,127.62,127.51,93.04516812]
[1767364666315,5.77552152,127.61,127.52,0.34516812]
[1767364666531,5.77552152,127.6,127.52,0.34516812]
[1767364666716,5.77552152,127.59,127.55,0.05815992]
[1767364667017,109.7929,127.64,127.55,0.05815992]
[1767364667223,5.73748972,127.63,127.53,93.04516812]
[1767364667415,5.73748972,127.62,127.53,93.04516812]
[1767364667616,5.73748972,127.61,127.53,93.04516812]
[1767364667816,121.25299464,127.66,127.54,0.34516812]
[1767364668015,5.74233271,127.65,127.59,0.05284043]
[1767364668218,5.74233271,127.64,127.59,0.05284043]
[1767364668526,5.74233271,127.63,127.59,0.05284043]
[1767364669223,109.7818,127.65,127.59,0.05284043]
[1767364669522,115.53966643,127.64,127.54,93.02516812]
[1767364669726,120.10594702,127.63,127.54,93.02516812]
[1767364669921,5.74766643,127.62,127.54,93.02516812]
[1767364670220,5.74766643,127.61,127.54,93.02516812]
[1767364670424,0.05715452,127.59,127.56,0.0504123]
[1767364672114,109.7645,127.67,127.56,0.39273156]
[1767364672310,5.74965869,127.65,127.57,7.40381926]
[1767364672511,7.0579,127.64,127.57,7.40381926]
[1767364672921,92.68,127.68,127.59,0.05409496]
[1767364673128,109.7521,127.69,127.59,0.39641422]
[1767364673320,114.30428059,127.7,127.59,0.39641422]
[1767364673520,7.056,127.68,127.6,7.40221926]
[1767364673719,7.056,127.68,127.62,0.05499817]
[1767364674230,18.53429464,127.66,127.62,0.05499817]
[1767364674620,11.47749464,127.66,127.62,0.05499817]
[1767364675833,18.53439464,127.66,127.62,0.05499817]
[1767364676022,11.47749464,127.66,127.62,0.05499817]
[1767364677725,109.6898,127.76,127.64,7.37285488]
[1767364677930,109.6898,127.76,127.64,0.31525488]
[1767364677931,109.7203,127.72,127.64,0.31525488]
[1767364678127,109.7104,127.73,127.64,0.31525488]
[1767364678333,7.0545,127.7,127.64,0.31525488]
[1767364678927,7.0537,127.72,127.66,0.05408252]
[1767364679329,109.714,127.73,127.66,0.05408252]
[1767364679628,109.714,127.73,127.64,0.31525488]
[1767364679828,7.0546,127.7,127.64,0.31525488]
[1767364680034,7.0546,127.7,127.66,0.05330393]
[1767364680341,97.20108059,127.75,127.66,0.05330393]
[1767364680550,92.64,127.75,127.69,0.04976868]
[1767364680736,202.3361,127.75,127.64,0.31525488]
[1767364681042,7.0534,127.72,127.64,7.37255488]
[1767364681232,114.26368059,127.74,127.64,0.31525488]
[1767364681429,7.0521,127.75,127.67,7.37115488]
[1767364681928,0.0524488,127.72,127.7,0.05836768]
[1767364682129,0.0524488,127.72,127.7,0.04962496]
[1767364682334,206.87548059,127.78,127.7,0.04962496]
[1767364682541,206.87548059,127.78,127.67,92.93525488]
[1767364682542,7.0519,127.75,127.67,0.31525488]
[1767364682939,7.0519,127.75,127.67,92.93525488]
[1767364683244,4.56108059,127.82,127.71,0.31525488]
[1767364683443,4.56108059,127.84,127.75,0.0595859]
[1767364683641,114.16548059,127.86,127.73,0.31525488]
[1767364683841,109.6044,127.86,127.78,0.05040013]
[1767364684141,109.6185,127.84,127.74,0.31525488]
[1767364684437,109.6336,127.82,127.72,92.62]
[1767364684844,114.20558059,127.81,127.72,92.62]
[1767364685039,0.05030075,127.78,127.75,0.05554332]
[1767364686035,109.6145,127.85,127.75,0.05554332]
[1767364686236,5.92322244,127.86,127.73,110.02125488]
[1767364686436,114.14888059,127.88,127.76,0.31525488]
[1767364686637,7.0458,127.86,127.78,0.31525488]
[1767364686840,109.5988,127.86,127.78,0.31525488]
[1767364687038,7.046,127.86,127.81,0.05655743]
[1767364687238,92.6,127.88,127.81,0.05655743]
[1767364687438,11.20545596,127.91,127.81,0.37181231]
[1767364687636,11.20545596,127.91,127.81,92.97181231]
[1767364687838,11.20545596,127.91,127.85,0.0570457]
[1767364688240,11.20545596,127.91,127.85,0.37230058]
[1767364688839,11.20545596,127.91,127.86,92.89525488]
[1767364689041,4.56108059,127.98,127.87,0.31525488]
[1767364689042,109.4989,127.98,127.87,0.31525488]
[1767364689249,109.4989,127.98,127.91,0.04941766]
[1767364689451,7.0397,127.97,127.91,0.04941766]
[1767364689641,109.5049,127.97,127.91,0.04941766]
[1767364689845,109.5226,127.95,127.87,0.31525488]
[1767364690148,109.5233,127.95,127.87,0.31525488]
[1767364690346,109.5218,127.95,127.87,0.31525488]
[1767364690556,109.5477,127.92,127.83,0.31525488]
[1767364690846,109.5218,127.95,127.86,0.05591567]
[1767364691148,109.4936,127.99,127.88,0.31525488]
[1767364691449,109.4634,128.02,127.91,0.31525488]
[1767364691648,7.037,128.02,127.92,0.31525488]
[1767364691954,7.037,128.02,127.96,0.04961091]
[1767364692548,437.6186,128.09,127.96,0.36486579]
[1767364692549,109.4082,128.09,127.96,0.36486579]
[1767364692750,109.4082,128.09,127.97,0.31525488]
[1767364692949,7.0329,128.1,128.01,0.05356817]
[1767364693145,7.0329,128.1,128.04,0.05341233]
[1767364693352,109.3617,128.14,128.04,0.36866721]
[1767364693644,109.3344,128.17,128.06,0.31525488]
[1767364693844,109.3628,128.14,128.08,0.05079148]
[1767364694045,109.3432,128.16,128.1,0.05960723]
[1767364694245,109.3549,128.15,128.06,0.31525488]
[1767364694438,109.3549,128.15,128.07,92.5]
[1767364694941,109.3208,128.19,128.08,0.31525488]
[1767364695243,108.29916905,128.38,128.11,0.31525488]
[1767364695244,120.34923662,128.24,128.11,0.31525488]
[1767364695451,11.06943662,128.24,128.14,4.87633547]
[1767364695649,11.06943662,128.24,128.15,0.31525488]
[1767364696352,127.37193662,128.24,128.15,92.77525488]
[1767364696555,127.37193662,128.24,128.13,92.46]
[1767364696556,109.2935,128.22,128.13,92.46]
[1767364696754,109.2861,128.23,128.13,92.46]
[1767364696955,120.34713662,128.24,128.14,0.31525488]
[1767364696956,11.06943662,128.24,128.14,0.31525488]
[1767364697452,11.06943662,128.24,128.15,113.90798059]
[1767364697755,11.06943662,128.24,128.18,0.37133853]
[1767364697972,11.06943662,128.24,128.18,0.05608365]
[1767364698147,127.37333662,128.24,128.14,0.31525488]
[1767364698344,11.06943662,128.24,128.15,0.31525488]
[1767364698546,11.06943662,128.24,128.16,0.31525488]
[1767364698855,109.1938,128.34,128.22,0.31525488]
[1767364699054,109.217,128.31,128.22,0.31525488]
[1767364699255,109.217,128.31,128.25,0.05306883]
[1767364699256,0.05105736,128.28,128.25,0.05306883]
[1767364699451,0.05105736,128.28,128.2,92.38]
[1767364699648,116.2467,128.3,128.2,92.38]
[1767364699846,116.2467,128.3,128.19,92.69525488]
[1767364699847,109.2425,128.28,128.19,92.69525488]
[1767364700050,109.2088,128.32,128.19,92.69525488]
[1767364700249,7.0208,128.32,128.2,0.31525488]
[1767364700450,7.0208,128.32,128.19,213.28118059]
[1767364700451,0.04963795,128.27,128.19,92.38]
[1767364700753,0.04963795,128.27,128.16,0.31525488]
[1767364700754,4.56108059,128.25,128.16,0.31525488]
[1767364700952,4.56108059,128.25,128.12,0.31525488]
[1767364700953,4.56108059,128.23,128.12,0.31525488]
[1767364701150,109.3107,128.2,128.08,0.31525488]
[1767364701457,113.89818059,128.17,128.09,92.34]
[1767364701666,113.89818059,128.17,128.05,0.31525488]
[1767364701667,109.40965778,128.15,128.05,0.31525488]
[1767364701855,113.91598059,128.15,128.05,0.31525488]
[1767364702160,4.56108059,128.12,128.03,92.34]
[1767364702356,109.4054,128.09,127.98,0.31525488]
[1767364702558,109.3882,128.11,128.02,0.05558847]
[1767364702758,113.95778059,128.1,128.0,0.31525488]
[1767364702964,7.0331,128.09,128.0,0.31525488]
[1767364703257,113.97918059,128.08,128.0,0.31525488]
[1767364703460,96.90108059,128.12,128.0,0.31525488]
[1767364703760,0.05681959,128.07,128.05,0.0538836]
[1767364703963,0.05142125,128.07,128.05,0.0538836]
[1767364704173,206.26468059,128.14,128.05,0.0538836]
[1767364704174,201.7036,128.14,128.05,0.0538836]
[1767364704461,109.3798,128.12,128.02,92.32]
[1767364704663,116.4228,128.11,128.02,92.32]
[1767364704856,109.3636,128.14,128.03,0.31525488]
[1767364705052,0.05800065,128.1,128.07,0.05159264]
[1767364705252,0.05800065,128.1,128.01,92.32]
[1767364705253,109.45210065,128.1,128.01,92.32]
[1767364705450,109.3877,128.11,128.01,92.63525488]
[1767364705652,109.3989,128.1,128.01,92.63525488]
[1767364705967,109.4051,128.09,128.01,92.32]
[1767364706159,0.04981608,128.06,128.04,0.05102492]
[1767364706356,0.04981608,128.06,127.97,92.63525488]
[1767364706561,114.00938059,128.04,127.93,0.31941037]
[1767364706865,116.4942,128.03,127.93,92.63941037]
[1767364707053,7.0367,128.03,127.94,0.31941037]
[1767364707257,206.29638059,128.08,127.96,0.31941037]
[1767364707562,7.034,128.08,127.97,92.63941037]
[1767364707764,7.034,128.08,127.98,0.31941037]
[1767364707962,7.034,128.08,127.97,92.32]
[1767364707963,113.99458059,128.06,127.97,92.32]
[1767364708157,113.97618059,128.08,127.97,0.31941037]
[1767364708466,0.05104846,128.04,128.01,0.0508019]
[1767364708873,4.56108059,128.1,128.01,0.37021227]
[1767364709059,92.32,128.12,128.01,0.31941037]
[1767364709369,4.56108059,128.13,128.02,0.31941037]
[1767364709571,92.32,128.13,128.02,0.31941037]
[1767364709861,109.3963,128.1,128.0,92.32]
[1767364710262,116.4454,128.08,127.98,0.31941037]
[1767364710470,113.98578059,128.07,127.98,0.31941037]
[1767364710763,113.99968059,128.05,127.95,92.32]
[1767364711066,0.05891041,128.01,127.99,0.05311788]
[1767364711365,0.05891041,128.01,127.95,92.32]
[1767364711760,0.05891041,128.01,127.94,0.31941037]
[1767364712367,0.05891041,128.01,127.96,0.05071019]
[1767364714466,109.4247,128.07,127.96,0.05071019]
[1767364714467,120.94696218,128.1,127.98,109.81471037]
[1767364714766,109.3961,128.1,127.99,0.31941037]
[1767364714966,109.4113,128.08,127.99,0.31941037]
[1767364715361,0.04927629,128.05,127.97,92.32]
[1767364715559,7.0346,128.06,127.97,92.32]
[1767364716069,7.0335,128.08,127.97,0.31941037]
[1767364716272,99.3735,128.08,127.97,0.31941037]
[1767364716457,0.05228322,128.04,128.01,0.05438583]
[1767364716660,19.79536971,128.14,128.02,0.31941037]
[1767364716862,109.3595,128.14,128.02,109.77711037]
[1767364717066,116.4081,128.12,128.02,0.31941037]
[1767364717269,109.3764,128.12,128.02,0.31941037]
[1767364717568,109.318,128.19,128.07,7.0336]
[1767364717766,109.3185,128.19,128.07,92.32]
[1767364717967,109.3395,128.17,128.02,109.77561037]
[1767364718174,109.3619,128.14,128.03,92.32]
[1767364718369,109.3775,128.12,128.03,92.32]
[1767364718571,0.05414523,128.09,127.98,92.63941037]
[1767364718762,109.4023,128.09,127.98,92.63941037]
[1767364718967,109.4454,128.04,127.94,0.31941037]
[1767364719170,109.4372,128.05,127.94,0.31941037]
[1767364719364,109.4545,128.03,127.94,0.31941037]
[1767364719768,0.05305212,128.0,127.97,0.05739143]
[1767364720174,0.05305212,128.0,127.92,92.32]
[1767364720381,109.4648,128.02,127.92,92.32]
[1767364720573,201.7848,128.02,127.92,92.32]
[1767364720769,201.7848,128.02,127.92,92.63941037]
[1767364720770,7.037,128.02,127.92,92.63941037]
[1767364720975,201.7647,128.04,127.93,0.31941037]
[1767364721181,0.0584575,128.0,127.97,0.0523052]
[1767364722177,0.0584575,128.0,127.92,0.31941037]
[1767364722385,109.4667,128.02,127.92,0.31941037]
[1767364722572,109.4884,127.99,127.88,0.31941037]
[1767364722777,109.4834,128.0,127.88,0.31941037]
[1767364723179,0.0566974,127.95,127.93,0.05057363]
[1767364723376,0.05183368,127.95,127.93,0.05057363]
[1767364723581,109.4454,128.04,127.93,0.369984]
[1767364723878,109.4613,128.03,127.93,0.31941037]
[1767364724180,109.4348,128.06,127.93,0.31941037]
[1767364724383,7.036,128.04,127.94,7.36011037]
[1767364724887,0.05266818,128.0,127.98,0.05360583]
[1767364725283,201.7643,128.07,127.98,0.05360583]
[1767364725487,201.7643,128.07,127.95,99.69981037]
[1767364725681,109.4279,128.06,127.95,7.35981037]
[1767364726084,7.0348,128.06,127.97,0.31941037]
[1767364726393,437.4873,128.13,127.94,201.8657]
[1767364726394,109.3651,128.14,128.02,0.31941037]
[1767364726578,109.3523,128.15,128.04,0.31941037]
[1767364726784,109.345,128.16,128.04,92.65941037]
[1767364726978,109.3689,128.13,127.99,109.4854]
[1767364727186,109.3849,128.11,128.0,92.65941037]
[1767364727401,7.0333,128.09,128.0,92.65941037]
[1767364727687,0.05801522,128.07,128.04,0.05901393]
[1767364727886,0.05801522,128.07,128.04,0.05046214]
[1767364728185,0.05801522,128.07,127.98,109.81101037]
[1767364728488,7.0321,128.11,128.02,7.0365]
[1767364729082,0.05034773,128.08,128.05,0.0561671]
[1767364729287,0.05034773,128.08,128.0,7.35701037]
[1767364729483,92.34,128.12,128.02,7.0365]
[1767364729692,109.3638,128.14,128.02,0.31941037]
[1767364729890,109.4021,128.09,127.98,0.31941037]
[1767364730094,7.0344,128.07,127.98,0.31941037]
[1767364730280,0.05076427,128.04,128.01,0.05446669]
[1767364730788,109.3477,128.16,128.03,109.4527]
[1767364730982,109.3271,128.18,128.06,0.31941037]
[1767364731182,7.0283,128.18,128.08,0.31941037]
[1767364731594,109.2983,128.22,128.1,0.31941037]
[1767364731788,129.07656971,128.24,128.15,0.05271135]
[1767364731789,0.05894884,128.17,128.15,0.05271135]
[1767364731993,109.2851,128.23,128.12,92.34]
[1767364732197,7.0267,128.21,128.12,92.34]
[1767364732395,109.3083,128.2,128.09,92.32]
[1767364732696,7.0293,128.16,128.07,0.31941037]
[1767364732889,0.05620186,128.13,128.1,0.05653778]
[1767364733197,0.05620186,128.13,128.1,0.05938336]
[1767364733400,0.05620186,128.13,128.03,0.31941037]
[1767364733699,7.3389232,128.12,128.02,92.32]
[1767364733888,7.0321,128.11,128.01,7.0371]
[1767364734085,116.6713232,128.18,128.04,0.31941037]
[1767364734291,109.3427,128.16,128.04,92.63941037]
[1767364734487,0.05801443,128.12,128.09,0.05160493]
[1767364735312,109.3939,128.1,128.0,0.31941037]
[1767364735594,109.3688,128.13,128.02,0.31941037]
[1767364735805,109.3632,128.14,128.02,109.78101037]
[1767364735983,109.3088,128.2,128.08,0.32969062]
[1767364736184,7.0256,128.23,128.13,7.0307]
[1767364736598,109.275,128.24,128.13,7.0307]
[1767364736801,7.0266,128.21,128.11,7.36139062]
[1767364737001,7.0266,128.21,128.11,0.32969062]
[1767364737391,0.05112088,128.17,128.15,0.05788499]
[1767364737997,0.05112088,128.17,128.11,0.32969062]
[1767364738204,109.38852088,128.17,128.09,0.32969062]
[1767364738384,109.3442,128.16,128.09,0.32969062]
[1767364738592,109.3442,128.16,128.04,116.7762232]
[1767364738593,109.3517,128.15,128.04,99.3354]
[1767364738893,109.37,128.13,128.04,92.3]
[1767364739198,0.05159796,128.1,128.07,0.05885376]
[1767364739697,7.0293,128.16,128.07,0.05885376]
[1767364739897,109.3232,128.19,128.07,109.4178]
[1767364740102,109.3232,128.19,128.06,109.4274]
[1767364740299,109.2914,128.22,128.09,109.4018]
[1767364740603,109.2914,128.22,128.08,109.4064]
[1767364740604,109.3193,128.19,128.08,92.28]
[1767364740802,0.05977735,128.15,128.12,0.05592246]
[1767364740984,116.6049232,128.25,128.11,109.71119062]
[1767364741188,116.6049232,128.25,128.12,109.70309062]
[1767364741387,109.2765,128.24,128.14,0.32969062]
[1767364741795,109.2765,128.24,128.1,92.28]
[1767364741796,109.2997,128.21,128.1,0.32969062]
[1767364741988,0.05371564,128.17,128.14,0.05574119]
[1767364742188,0.05371564,128.17,128.07,109.4187]
[1767364742394,109.3271,128.18,128.06,0.32969062]
[1767364742703,109.3337,128.17,128.06,92.60969062]
[1767364742999,109.3337,128.17,128.06,0.32969062]
[1767364743203,0.04999988,128.13,128.02,109.78519062]
[1767364743386,109.3542,128.15,128.03,92.28]
[1767364743586,92.28,128.16,128.05,0.32969062]
[1767364743785,109.3122,128.2,128.08,109.73869062]
[1767364743985,92.28,128.19,128.08,92.60969062]
[1767364744206,92.28,128.19,128.07,109.4144]
[1767364744207,0.05132169,128.15,128.07,7.0337]
[1767364744495,109.36,128.14,128.05,92.28]
[1767364744699,7.031,128.13,128.04,7.36519062]
[1767364745104,7.0326,128.1,128.0,7.36719062]
[1767364745404,0.05469534,128.06,127.96,0.32969062]
[1767364745606,0.05469534,128.06,127.95,9.15032155]
[1767364745607,109.4283,128.06,127.95,9.15032155]
[1767364745900,7.036,128.04,127.93,92.60969062]
[1767364746195,109.4363,128.05,127.93,92.60969062]
[1767364746388,109.4625,128.02,127.89,109.89639062]
[1767364746585,109.54218567,128.0,127.9,92.28]
[1767364746794,116.5458,127.97,127.86,92.28]
[1767364747008,115.85,128.03,127.91,0.32969062]
[1767364747009,109.4543,128.03,127.91,0.32969062]
[1767364747193,109.4301,128.06,127.95,0.32969062]
[1767364747391,7.0361,128.04,127.95,92.60969062]
[1767364747592,0.05004446,128.01,127.98,0.06013859]
[1767364747898,0.05517258,128.01,127.98,0.0533958]
[1767364748198,92.28,128.08,127.98,0.0533958]
[1767364748401,92.28,128.08,127.97,201.7818]
[1767364748590,7.0325,128.1,127.99,109.81569062]
[1767364748899,109.3642,128.14,128.02,0.32969062]
[1767364749104,92.3,128.15,128.03,109.4493]
[1767364749296,0.0587198,128.1,128.08,0.05516129]
[1767364749496,0.0578706,128.1,128.02,92.62969062]
[1767364749696,109.3878,128.11,127.99,201.7853]
[1767364749993,109.3878,128.11,127.99,92.3]
[1767364750196,7.0324,128.1,127.99,208.8248]
[1767364750398,109.3642,128.14,128.03,0.38892838]
[1767364750597,109.3785,128.12,127.99,202.11619062]
[1767364750902,109.3936,128.1,128.0,92.62969062]
[1767364751100,109.4197,128.07,127.97,92.3]
[1767364751316,109.4124,128.08,127.97,92.3]
[1767364751502,109.4037,128.09,127.97,92.3]
[1767364751503,0.05260489,128.04,128.01,0.05727251]
[1767364751697,0.05706414,128.04,127.94,0.32969062]
[1767364751894,109.4367,128.05,127.95,92.3]
[1767364752197,109.4367,128.05,127.92,92.3]
[1767364752198,109.457,128.03,127.92,92.3]
[1767364752494,109.457,128.03,127.91,92.3]
[1767364752495,7.0373,128.02,127.91,92.3]
[1767364752688,0.05947953,127.98,127.95,0.0525788]
[1767364752890,109.4293,128.06,127.95,0.32969062]
[1767364753090,116.4632,128.06,127.95,0.32969062]
[1767364753291,19.76677727,128.11,127.96,109.84189062]